fUST/lending_fUST_20260305
["ID","MTS","AMOUNT","RATE_DAILY","PERIOD"]
[407704688,1772693446471,-711.09340496,8.6e-05,2]
[407704969,1772694632865,-5000.0,7.382e-05,2]
[407704972,1772694632877,-525.0,7.457e-05,2]
[407704974,1772694632889,-183.65725633,7.495e-05,2]
[407704976,1772694632900,-273.1323282,7.532e-05,2]
[407704978,1772694632913,-214.63031262,8.3e-05,2]
[407704981,1772694632924,-260.96051427,8.3e-05,2]
[407704983,1772694632935,-183.34568756,8.399e-05,2]
[407704985,1772694632948,-278.78771961,8.399e-05,2]
[407704988,1772694632962,-21.21228039,8.399e-05,2]
[407704990,1772694632974,-227.70874377,8.4e-05,2]
[407704992,1772694632986,-215.0274371,8.4e-05,2]
[407704994,1772694633000,-208.97497127,8.4e-05,2]
[407704997,1772694633012,-136.98795582,8.4e-05,2]
[407704999,1772694633026,-111.91555857,8.4e-05,2]
[407705001,1772694633043,-4236.38444143,8.4e-05,2]
[407705004,1772694633057,-10211.45323299,8.4e-05,2]
[407705565,1772694638810,-63939.77652566,8.4e-05,2]
[407705751,1772694641110,-2522.26821756,8.316e-05,2]
[407705752,1772694641122,-80870.52946771,8.4e-05,2]
[407705753,1772694641135,-293.26610027,8.4e-05,2]
[407705929,1772694643973,-713.09340496,8.4e-05,2]
[407706105,1772694646575,-68649.1141718,8.4e-05,2]
[407706106,1772694646587,-11094.06760596,8.4e-05,2]
[407706107,1772694646749,-317.706,8.4e-05,2]
[407706164,1772695077896,-151.0,9.5e-05,30]
[407706165,1772695078847,-151.0,9.5e-05,30]
[407706166,1772695080196,-151.0,9.5e-05,30]
[407706167,1772695081142,-151.0,9.5e-05,30]
[407706169,1772695127857,-151.0,9.5e-05,30]
[407706170,1772695129253,-151.0,9.5e-05,30]
[407706171,1772695130231,-151.0,9.5e-05,30]
[407706172,1772695132716,-151.0,9.5e-05,30]
[407706173,1772695133764,-151.0,9.5e-05,30]
[407706174,1772695135191,-151.0,9.5e-05,30]
[407706175,1772695136118,-151.0,9.5e-05,30]
[407706176,1772695137120,-151.0,9.5e-05,30]
[407706177,1772695138443,-151.0,9.5e-05,30]
[407706178,1772695139813,-151.0,9.5e-05,30]
[407706179,1772695244465,-151.0,9.5e-05,30]
[407706180,1772695246100,-151.0,9.5e-05,30]
[407706181,1772695247204,-151.0,9.256e-05,30]
[407706182,1772695263814,-59.32972987,9.256e-05,30]
[407706183,1772695263839,-91.67027013,9.5e-05,30]
[407706268,1772695831611,-5000.0,6.81e-05,2]
[407706271,1772695831627,-81.74,6.845e-05,2]
[407706363,1772695837961,-98.2441112,6.845e-05,2]
[407706365,1772695837974,-1016.14640754,6.879e-05,2]
[407706367,1772695837986,-518.0,6.879e-05,2]
[407706368,1772695837997,-294.3706511,7.089e-05,2]
[407706369,1772695838009,-300.0,7.96e-05,2]
[407706370,1772695838027,-449.15704964,7.961e-05,2]
[407706371,1772695838039,-808.48268935,7.961e-05,2]
[407706372,1772695838051,-1437.30255885,7.961e-05,2]
[407706373,1772695838063,-1078.29653232,7.961e-05,2]
[407706384,1772695845327,-300.0,7.961e-05,2]
[407706386,1772695845339,-659.31577339,7.961e-05,2]
[407706388,1772695845350,-208.17294249,7.961e-05,2]
[407706389,1772695845359,-3230.69682665,7.973e-05,2]
[407706390,1772695845368,-706.14327849,8.019e-05,2]
[407706398,1772695845837,-7619.09251136,8.019e-05,2]
[407706399,1772695845851,-3965.13800525,8.099e-05,2]
[407706400,1772695845860,-12942.61966933,8.1e-05,2]
[407706401,1772695845870,-30108.01571081,8.1e-05,2]
[407706402,1772695845879,-5003.5199332,8.1e-05,2]
[407706403,1772695845893,-25104.4957776,8.1e-05,2]
[407706404,1772695845902,-5887.78494634,8.1e-05,2]
[407706405,1772695881559,-251.29115087,7.923e-05,2]
[407706406,1772695881579,-251.29115087,8.019e-05,2]
[407706407,1772695881590,-540.9830827,8.019e-05,2]
[407706423,1772696371370,-150.0,8.982e-05,30]
[407706424,1772696373873,-150.0,8.982e-05,30]
[407706425,1772696375408,-150.0,8.982e-05,30]
[407706426,1772696376491,-50.0,8.982e-05,30]
[407706427,1772696376512,-100.0,8.982e-05,30]
[407706518,1772697031825,-433.45811007,6.621e-05,2]
[407706556,1772697038016,-4566.54188993,6.621e-05,2]
[407706558,1772697038026,-514.0,6.621e-05,2]
[407706560,1772697038036,-695.597848,6.688e-05,2]
[407706562,1772697038046,-300.0,6.824e-05,2]
[407706564,1772697038055,-500.0,6.824e-05,2]
[407706566,1772697038064,-500.0,6.824e-05,2]
[407706568,1772697038073,-500.0,6.824e-05,2]
[407706570,1772697038083,-500.0,6.824e-05,2]
[407706573,1772697038092,-500.0,6.824e-05,2]
[407706576,1772697038102,-500.0,6.824e-05,2]
[407706579,1772697038112,-500.0,6.824e-05,2]
[407706582,1772697038120,-500.0,6.824e-05,2]
[407706585,1772697038130,-500.0,6.824e-05,2]
[407706588,1772697038140,-500.0,6.824e-05,2]
[407706591,1772697038149,-500.0,6.824e-05,2]
[407706594,1772697038158,-500.0,6.824e-05,2]
[407706597,1772697038167,-500.0,6.824e-05,2]
[407706600,1772697038177,-272.79132422,6.824e-05,2]
[407706602,1772697038186,-500.0,6.824e-05,2]
[407706604,1772697038196,-500.0,6.824e-05,2]
[407706606,1772697038208,-500.0,6.824e-05,2]
[407706608,1772697038217,-500.0,6.824e-05,2]
[407706610,1772697038226,-360.0,6.824e-05,2]
[407706612,1772697038236,-500.0,6.824e-05,2]
[407706614,1772697038247,-500.0,6.824e-05,2]
[407706616,1772697038256,-500.0,6.824e-05,2]
[407706618,1772697038265,-500.0,6.824e-05,2]
[407706620,1772697038275,-500.0,6.824e-05,2]
[407706622,1772697038284,-500.0,6.824e-05,2]
[407706624,1772697038294,-500.0,6.824e-05,2]
[407706626,1772697038303,-500.0,6.824e-05,2]
[407706628,1772697038312,-414.16568501,6.824e-05,2]
[407706629,1772697038321,-500.0,6.824e-05,2]
[407706631,1772697038331,-244.5158208,6.824e-05,2]
[407706633,1772697038340,-500.0,6.824e-05,2]
[407706636,1772697038358,-500.0,6.824e-05,2]
[407706639,1772697038369,-500.0,6.824e-05,2]
[407706641,1772697038379,-500.0,6.824e-05,2]
[407706643,1772697038390,-500.0,6.824e-05,2]
[407706645,1772697038400,-500.0,6.824e-05,2]
[407706647,1772697038410,-500.0,6.824e-05,2]
[407706649,1772697038420,-500.0,6.824e-05,2]
[407706651,1772697038430,-500.0,6.824e-05,2]
[407706653,1772697038439,-500.0,6.824e-05,2]
[407706655,1772697038448,-500.0,6.824e-05,2]
[407706657,1772697038458,-500.0,6.824e-05,2]
[407706659,1772697038468,-500.0,6.824e-05,2]
[407706661,1772697038478,-284.65770892,6.824e-05,2]
[407706663,1772697038487,-252.53544711,6.824e-05,2]
[407706665,1772697038497,-500.0,6.824e-05,2]
[407706667,1772697038507,-500.0,6.824e-05,2]
[407706669,1772697038516,-500.0,6.824e-05,2]
[407706671,1772697038526,-500.0,6.824e-05,2]
[407706673,1772697038535,-500.0,6.824e-05,2]
[407706675,1772697038544,-500.0,6.824e-05,2]
[407706677,1772697038554,-500.0,6.824e-05,2]
[407706680,1772697038563,-500.0,6.824e-05,2]
[407706682,1772697038573,-524.70360244,6.824e-05,2]
[407706683,1772697038582,-176.38442898,6.825e-05,2]
[407706686,1772697038591,-27487.2887802,6.825e-05,2]
[407706688,1772697038601,-171.60192669,6.849e-05,2]
[407706690,1772697038610,-47027.0794795,7.304e-05,2]
[407706692,1772697038620,-169.41487456,7.378e-05,2]
[407706694,1772697038630,-186.237,7.759e-05,2]
[407706696,1772697038641,-1248713.13289599,7.817e-05,2]
[407706698,1772697038654,-322.86507202,7.817e-05,2]
[407706700,1772697038666,-1600.23700701,7.817e-05,2]
[407706703,1772697038677,-10228.95,7.817e-05,2]
[407707219,1772697044732,-354.69225279,7.662e-05,2]
[407707230,1772697044799,-4645.30774721,7.662e-05,2]
[407707232,1772697044808,-3555.59433786,7.739e-05,2]
[407707270,1772697045319,-6120.17748533,7.739e-05,2]
[407707271,1772697045330,-22758.76474089,7.817e-05,2]
[407707379,1772697046467,-1435.14,7.817e-05,2]
[407707382,1772697046490,-3205.11187687,7.817e-05,2]
[407711256,1772697662880,-1149.52842219,6.142e-05,2]
[407711257,1772697662907,-3850.47157781,6.142e-05,2]
[407711264,1772697691059,200.0,0.00014159,120]
[407711265,1772697692121,-1149.52842219,6.137e-05,2]
[407711290,1772697751045,200.0,0.00013091,120]
[407711303,1772697811275,200.0,0.00013011,120]
[407711351,1772698232056,-501.0,5.563e-05,2]
[407711353,1772698232065,-723.54802001,5.563e-05,2]
[407711355,1772698232074,-4443.04821342,5.663e-05,2]
[407711357,1772698232086,-556.95178658,5.663e-05,2]
[407711359,1772698232095,-247.65935201,5.719e-05,2]
[407711553,1772698238138,-52.34064799,5.719e-05,2]
[407711554,1772698238147,-300.0,5.719e-05,2]
[407711555,1772698238157,-300.0,5.719e-05,2]
[407711556,1772698238166,-148.78935201,5.719e-05,2]
[407711557,1772698238178,-151.21064799,5.719e-05,2]
[407711558,1772698238188,-1200.0,5.719e-05,2]
[407711559,1772698238197,-5000.0,5.72e-05,2]
[407711560,1772698238207,-300.0,5.777e-05,2]
[407711561,1772698238216,-5000.0,5.778e-05,2]
[407711562,1772698238227,-174.4915404,5.866e-05,2]
[407711563,1772698238237,-10000.0,6.199e-05,2]
[407711564,1772698238246,-1705.94953568,6.199e-05,2]
[407711565,1772698238256,-440.3,7.5e-05,2]
[407711566,1772698238266,-2802.06804738,7.739e-05,2]
[407711567,1772698238275,-331.71787673,7.865e-05,2]
[407711568,1772698238285,-500.0,7.865e-05,2]
[407711569,1772698238295,-500.0,7.865e-05,2]
[407711570,1772698238305,-528.13935493,7.865e-05,2]
[407711571,1772698238314,-193.8350912,7.865e-05,2]
[407711572,1772698238323,-500.0,7.865e-05,2]
[407711573,1772698238332,-500.0,7.865e-05,2]
[407711574,1772698238341,-500.0,7.865e-05,2]
[407711575,1772698238350,-500.0,7.865e-05,2]
[407711576,1772698238360,-261.57547627,7.865e-05,2]
[407711577,1772698238369,-500.0,7.865e-05,2]
[407711578,1772698238378,-622.32711691,7.865e-05,2]
[407711579,1772698238387,-500.0,7.865e-05,2]
[407711580,1772698238396,-500.0,7.865e-05,2]
[407711581,1772698238407,-500.0,7.865e-05,2]
[407711582,1772698238416,-464.70329187,7.865e-05,2]
[407711583,1772698238426,-500.0,7.865e-05,2]
[407711584,1772698238435,-500.0,7.865e-05,2]
[407711585,1772698238445,-500.0,7.865e-05,2]
[407711586,1772698238454,-202.47036025,7.865e-05,2]
[407711587,1772698238464,-500.0,7.865e-05,2]
[407711588,1772698238473,-500.0,7.865e-05,2]
[407711589,1772698238483,-500.0,7.865e-05,2]
[407711590,1772698238492,-500.0,7.865e-05,2]
[407711591,1772698238501,-500.0,7.865e-05,2]
[407711592,1772698238510,-500.0,7.865e-05,2]
[407711593,1772698238525,-500.0,7.865e-05,2]
[407711594,1772698238536,-500.0,7.865e-05,2]
[407711595,1772698238545,-500.0,7.865e-05,2]
[407711596,1772698238555,-500.0,7.865e-05,2]
[407711597,1772698238567,-500.0,7.865e-05,2]
[407711598,1772698238576,-490.0,7.865e-05,2]
[407711599,1772698238587,-205.90001767,7.866e-05,2]
[407711600,1772698238599,-600.0,7.969e-05,2]
[407711601,1772698238608,-7965.57058348,8e-05,2]
[407711602,1772698238618,-308.88346805,8.26e-05,2]
[407711603,1772698238627,-446.74391575,8.26e-05,2]
[407711604,1772698238636,-307.88938343,8.26e-05,2]
[407711605,1772698238646,-549.12616541,8.26e-05,2]
[407711606,1772698238655,-307.42241119,8.29e-05,2]
[407711607,1772698238664,-857.15162383,8.472e-05,2]
[407711608,1772698238675,-351.52170749,8.473e-05,2]
[407711609,1772698238685,-14186.26678131,8.567e-05,2]
[407711610,1772698238695,-379.839,8.592e-05,2]
[407711611,1772698238704,-429.74,8.7e-05,2]
[407711612,1772698238713,-720.0,8.766e-05,2]
[407711613,1772698238723,-313.38748637,8.793e-05,2]
[407711614,1772698238734,-351.3398985,8.794e-05,2]
[407711615,1772698238743,-320.27668015,8.81e-05,2]
[407711616,1772698238754,-65212.89555583,8.91e-05,2]
[407711617,1772698238766,-4988.124678,8.91e-05,2]
[407711618,1772698238790,-2023.93468441,8.91e-05,2]
[407712232,1772698246592,-2014.39507082,8.733e-05,2]
[407712258,1772698246860,-674.9978492,8.733e-05,2]
[407712262,1772698246886,-2658.96495069,8.821e-05,2]
[407712264,1772698246898,-717.09420484,8.821e-05,2]
[407712266,1772698246909,-1253.9302034,8.821e-05,2]
[407713305,1772698411148,200.0,0.00013904,120]
[407713308,1772698517280,153.00847728,6.5e-05,3]
[407713368,1772698531247,200.0,0.00015738,120]
[407713375,1772698596234,212.95498581,6.5e-05,3]
[407713376,1772698618609,239.57435904,6.5e-05,3]
[407713380,1772698636370,160.95107487,6.5e-05,3]
[407713395,1772698689170,319.43247872,6.5e-05,3]
[407713396,1772698696360,238.50958411,6.5e-05,3]
[407713397,1772698711431,238.50958411,6.5e-05,3]
[407713398,1772698723637,362.80616312,6.5e-05,3]
[407713399,1772698758670,319.43247872,6.5e-05,3]
[407713400,1772698768874,319.43247872,6.5e-05,3]
[407713401,1772698780383,239.57435904,6.5e-05,3]
[407713402,1772698792587,239.57435904,6.5e-05,3]
[407713403,1772698804254,238.50958411,6.5e-05,3]
[407713404,1772698815966,238.50958411,6.5e-05,3]
[407713405,1772698827003,238.50958411,6.5e-05,3]
[407713406,1772698836667,362.80616312,6.5e-05,3]
[407713407,1772698847248,362.80616312,6.5e-05,3]
[407713409,1772698878009,153.00847728,6.5e-05,3]
[407713410,1772698887388,212.95498581,6.5e-05,3]
[407713411,1772698898189,319.43247872,6.5e-05,3]
[407713412,1772698907480,239.57435904,6.5e-05,3]
[407713413,1772698917506,160.95107487,6.5e-05,3]
[407713414,1772698927829,238.50958411,6.5e-05,3]
[407713415,1772698938857,238.50958411,6.5e-05,3]
[407713416,1772698948671,238.50958411,6.5e-05,3]
[407713417,1772698980149,362.80616312,6.5e-05,3]
[407713418,1772699010862,200.0,0.00015032,120]
[407713444,1772699131256,200.0,0.00015301,120]
[407713447,1772699300906,396.054,0.000157,120]
[407713469,1772699432333,-5000.0,5.274e-05,2]
[407713471,1772699432343,-2407.99665378,5.327e-05,2]
[407713473,1772699432352,-207.31755259,5.381e-05,2]
[407713475,1772699432361,-176.82215637,5.463e-05,2]
[407713476,1772699432370,-1200.0,5.888e-05,2]
[407713477,1772699432379,-300.0,6.253e-05,2]
[407713479,1772699432389,-263.0,6.253e-05,2]
[407713480,1772699432399,-940.33340442,6.255e-05,2]
[407713482,1772699432410,-603.63573118,6.255e-05,2]
[407713484,1772699432419,-1210.0,6.477e-05,2]
[407713486,1772699432429,-846.868891,6.905e-05,2]
[407713487,1772699432438,-846.868891,7.196e-05,2]
[407713488,1772699432447,-208.65014452,7.463e-05,2]
[407713489,1772699432457,-846.868891,7.487e-05,2]
[407713490,1772699432466,-846.868891,7.777e-05,2]
[407713491,1772699432476,-166.34928642,7.879e-05,2]
[407713492,1772699432485,-8320.0,8e-05,2]
[407713493,1772699432495,-451.52776287,8.068e-05,2]
[407713495,1772699432508,-395.34112813,8.068e-05,2]
[407713496,1772699432519,-216.46055619,8.099e-05,2]
[407713497,1772699432529,-548.41962281,8.099e-05,2]
[407713498,1772699432538,-176.8023393,8.297e-05,2]
[407713499,1772699432547,-846.868891,8.359e-05,2]
[407713500,1772699432556,-411.38559558,8.471e-05,2]
[407713501,1772699432566,-314.87620978,8.471e-05,2]
[407713538,1772699438394,-185.12379022,8.471e-05,2]
[407713540,1772699438403,-473.36042986,8.471e-05,2]
[407713542,1772699438414,-136.63957014,8.471e-05,2]
[407713545,1772699438424,-201.24819047,8.471e-05,2]
[407713546,1772699438433,-232.3450095,8.471e-05,2]
[407713548,1772699438442,-3549.15537855,8.472e-05,2]
[407713551,1772699438454,-1119.51597385,8.472e-05,2]
[407713553,1772699438466,-392.74227044,8.472e-05,2]
[407714023,1772699443476,-5000.0,8.387e-05,2]
[407714025,1772699443485,-67137.51366361,8.472e-05,2]
[407714033,1772699443550,-400.0,8.472e-05,2]
[407714325,1772699446403,-791.28,8.472e-05,2]
[407714326,1772699446413,-8915.2980039,8.472e-05,2]
[407717363,1772699482048,-2343.09585024,8.387e-05,2]
[407718310,1772699491681,200.0,0.00013236,120]
[407721092,1772699770664,-150.0,8.708e-05,30]
[407721093,1772699772129,-150.0,8.708e-05,30]
[407721094,1772699773052,-150.0,8.708e-05,30]
[407721095,1772699774060,-50.0,8.708e-05,30]
[407721096,1772699774081,-100.0,8.708e-05,30]
[407721097,1772699776229,-150.0,8.708e-05,30]
[407721098,1772699791088,-150.0,8.708e-05,30]
[407721099,1772699796968,-100.0,8.708e-05,30]
[407721100,1772699796990,-50.0,8.708e-05,30]
[407721101,1772699798229,-100.0,8.708e-05,30]
[407721102,1772699798252,-50.0,8.708e-05,30]
[407721103,1772699870122,-100.0,8.708e-05,30]
[407721104,1772699870142,-50.0,8.708e-05,30]
[407721107,1772699892703,-130.79763155,8.708e-05,30]
[407721108,1772699892724,-19.20236845,8.708e-05,30]
[407721110,1772699926250,-130.79763155,8.708e-05,30]
[407721111,1772699926273,-19.20236845,8.708e-05,30]
[407721112,1772700087773,-150.0,8.489e-05,30]
[407721113,1772700089486,-150.0,8.489e-05,30]
[407721114,1772700090817,-150.0,8.489e-05,30]
[407721115,1772700092061,-50.0,8.489e-05,30]
[407721116,1772700092085,-100.0,8.489e-05,30]
[407721117,1772700093071,-50.0,8.489e-05,30]
[407721118,1772700093094,-100.0,8.489e-05,30]
[407721119,1772700129401,-50.0,8.489e-05,30]
[407721120,1772700129426,-100.0,8.489e-05,30]
[407721121,1772700130733,-150.0,8.489e-05,30]
[407721122,1772700131861,-150.0,8.489e-05,30]
[407721123,1772700132927,-100.0,8.489e-05,30]
[407721124,1772700132948,-50.0,8.489e-05,30]
[407721125,1772700134374,-150.0,8.489e-05,30]
[407721126,1772700202741,-39.47635364,8.489e-05,30]
[407721127,1772700202765,-110.52364636,8.489e-05,30]
[407721128,1772700207415,-139.47635364,8.489e-05,30]
[407721129,1772700207436,-10.52364636,8.489e-05,30]
[407721130,1772700210968,-139.90968914,8.489e-05,30]
[407721131,1772700210992,-10.09031086,8.489e-05,30]
[407721132,1772700215459,-150.0,8.489e-05,30]
[407721133,1772700217876,-150.0,8.489e-05,30]
[407721135,1772700334250,-150.0,8.489e-05,30]
[407721136,1772700335931,-39.90968914,8.489e-05,30]
[407721137,1772700335954,-110.09031086,8.489e-05,30]
[407721138,1772700336769,-93.52100738,8.489e-05,30]
[407721139,1772700336788,-56.47899262,8.489e-05,30]
[407721140,1772700337607,-93.52100738,8.489e-05,30]
[407721141,1772700337629,-56.47899262,8.544e-05,30]
[407721142,1772700338392,-150.0,8.544e-05,30]
[407721143,1772700342396,-150.0,8.544e-05,30]
[407721144,1772700345147,-143.52100738,8.544e-05,30]
[407721145,1772700345167,-6.47899262,8.544e-05,30]
[407721172,1772700632339,-396.45798965,6.929e-05,2]
[407721255,1772700638651,-4603.54201035,6.929e-05,2]
[407721256,1772700638662,-519.0,6.999e-05,2]
[407721257,1772700638671,-500.0,6.999e-05,2]
[407721258,1772700638681,-500.0,6.999e-05,2]
[407721259,1772700638690,-500.0,6.999e-05,2]
[407721260,1772700638700,-500.0,6.999e-05,2]
[407721261,1772700638709,-485.56559435,6.999e-05,2]
[407721262,1772700638719,-500.0,6.999e-05,2]
[407721263,1772700638728,-500.0,6.999e-05,2]
[407721264,1772700638738,-500.0,6.999e-05,2]
[407721265,1772700638748,-500.0,6.999e-05,2]
[407721266,1772700638758,-537.36760576,6.999e-05,2]
[407721267,1772700638768,-500.0,6.999e-05,2]
[407721268,1772700638778,-500.0,6.999e-05,2]
[407721269,1772700638788,-352.57621063,6.999e-05,2]
[407721270,1772700638798,-500.0,6.999e-05,2]
[407721271,1772700638807,-500.0,6.999e-05,2]
[407721272,1772700638817,-500.0,6.999e-05,2]
[407721273,1772700638826,-500.0,6.999e-05,2]
[407721274,1772700638836,-500.0,6.999e-05,2]
[407721275,1772700638846,-500.0,6.999e-05,2]
[407721276,1772700638855,-169.11271036,7e-05,2]
[407721277,1772700638865,-57420.21917299,7e-05,2]
[407721278,1772700638876,-31560.0,7e-05,2]
[407721279,1772700638891,-20441.40915791,7e-05,2]
[407721281,1772700638903,-8969.16794341,7e-05,2]
[407721420,1772700640904,-387.61592192,6.93e-05,2]
[407721686,1772700643623,-340.63316322,6.93e-05,2]
[407721687,1772700643633,-4792.32412683,7e-05,2]
[407721688,1772700643780,-718.09528255,7e-05,2]
[407721760,1772700646445,-105124.79170725,7e-05,2]
[407721767,1772700646551,-10423.72505218,7e-05,2]
[407726310,1772700800209,5900.0,0.000157,120]
[407726633,1772701262707,-843.09585024,5.854e-05,2]
[407726634,1772701262727,-843.09585024,5.913e-05,2]
[407726635,1772701262739,-574.04140951,5.913e-05,2]
[407726743,1772701832433,-1976.53557976,5.736e-05,2]
[407726748,1772701832488,-3023.46442024,5.736e-05,2]
[407726750,1772701832500,-905.0,5.794e-05,2]
[407726752,1772701832510,-504.0,5.795e-05,2]
[407726754,1772701832519,-300.0,6.093e-05,2]
[407726756,1772701832529,-285.0,6.093e-05,2]
[407726758,1772701832539,-300.0,6.093e-05,2]
[407726762,1772701832549,-10000.0,6.094e-05,2]
[407726766,1772701832559,-500.0,6.899e-05,2]
[407726769,1772701832572,-165.06284382,6.899e-05,2]
[407726771,1772701832582,-205.84180118,6.899e-05,2]
[407726773,1772701832591,-170.81862286,6.899e-05,2]
[407726775,1772701832600,-4738.5004265,6.9e-05,2]
[407726777,1772701832610,-11491.8518854,6.9e-05,2]
[407726779,1772701832622,-693.06526405,6.9e-05,2]
[407726781,1772701832633,-958.06093618,6.9e-05,2]
[407726782,1772701832645,-2844.90492102,6.9e-05,2]
[407726788,1772701838674,-2918.61873677,6.9e-05,2]
[407726789,1772701838684,-25578.97442337,6.9e-05,2]
[407726791,1772701838694,-11822.50108496,6.9e-05,2]
[407726793,1772701838704,-17623.54108421,6.9e-05,2]
[407726794,1772701838713,-2594.82285343,6.9e-05,2]
[407726795,1772701838723,-2594.82285339,6.925e-05,2]
[407726796,1772701838733,-2594.82285339,6.95e-05,2]
[407726797,1772701838743,-2594.82285339,6.975e-05,2]
[407726799,1772701838753,-2594.82285339,7e-05,2]
[407726801,1772701838763,-394036.0,7e-05,2]
[407726802,1772701838772,-131472.0,7e-05,2]
[407726804,1772701838781,-25228.6315884,7.008e-05,2]
[407726805,1772701838791,-619.867034,7.008e-05,2]
[407726806,1772701838800,-2031.8633113,7.252e-05,2]
[407726807,1772701838809,-247.38349279,7.646e-05,2]
[407726808,1772701838819,-386.15017078,7.646e-05,2]
[407726809,1772701838833,-195.56193826,7.899e-05,2]
[407726810,1772701838843,-5629.2686066,7.908e-05,2]
[407726811,1772701838853,-367.22666926,8.048e-05,2]
[407726812,1772701838862,-419.68762201,8.048e-05,2]
[407726813,1772701838872,-655.10614748,8.048e-05,2]
[407726814,1772701838882,-1256.0596057,8.108e-05,2]
[407726815,1772701838892,-314857.7861706,8.151e-05,2]
[407726816,1772701838901,-281.67213061,8.151e-05,2]
[407726817,1772701838911,-332.12512043,8.219e-05,2]
[407726818,1772701838920,-162.380719,8.246e-05,2]
[407726819,1772701838929,-168.3888056,8.246e-05,2]
[407726820,1772701838939,-174.61919141,8.246e-05,2]
[407726821,1772701838948,-250.0,8.246e-05,2]
[407726822,1772701838958,-181.08010149,8.246e-05,2]
[407726823,1772701838967,-250.0,8.246e-05,2]
[407726824,1772701838977,-187.78006525,8.246e-05,2]
[407726825,1772701838987,-250.0,8.246e-05,2]
[407726826,1772701838997,-194.72792766,8.246e-05,2]
[407726827,1772701839006,-250.0,8.246e-05,2]
[407726828,1772701839015,-201.93286099,8.246e-05,2]
[407726829,1772701839025,-250.0,8.246e-05,2]
[407726830,1772701839036,-156.587,8.246e-05,2]
[407726831,1772701839045,-209.40437684,8.246e-05,2]
[407726832,1772701839055,-250.0,8.246e-05,2]
[407726833,1772701839064,-151.0,8.246e-05,2]
[407726834,1772701839073,-217.15233878,8.246e-05,2]
[407726835,1772701839082,-250.0,8.246e-05,2]
[407726836,1772701839092,-225.18697532,8.246e-05,2]
[407726837,1772701839101,-250.0,8.246e-05,2]
[407726838,1772701839111,-233.51889341,8.246e-05,2]
[407726839,1772701839120,-189.90132942,8.246e-05,2]
[407726840,1772701839129,-390.88471206,8.246e-05,2]
[407726841,1772701839139,-162.380719,8.246e-05,2]
[407726842,1772701839148,-2150.738,8.246e-05,2]
[407726843,1772701839157,-710.09295032,8.288e-05,2]
[407726844,1772701839167,-23720.4189308,8.37e-05,2]
[407726845,1772701839176,-500.0,8.434e-05,30]
[407726846,1772701839186,-500.0,8.434e-05,30]
[407726847,1772701839195,-200.0,8.434e-05,30]
[407726848,1772701839205,-150.0,8.434e-05,30]
[407726849,1772701839215,-150.0,8.434e-05,30]
[407726850,1772701839224,-150.0,8.434e-05,30]
[407726851,1772701839234,-194.16801142,8.434e-05,30]
[407726852,1772701839243,-500.0,8.434e-05,30]
[407726853,1772701839253,-150.0,8.434e-05,30]
[407726854,1772701839263,-150.0,8.434e-05,30]
[407726855,1772701839278,-150.0,8.434e-05,30]
[407726856,1772701839287,-150.0,8.434e-05,30]
[407726857,1772701839297,-500.0,8.434e-05,30]
[407726858,1772701839306,-150.0,8.434e-05,30]
[407726859,1772701839315,-500.0,8.434e-05,30]
[407726860,1772701839325,-500.0,8.434e-05,30]
[407726861,1772701839335,-418.88037839,8.472e-05,2]
[407726862,1772701839344,-753.9846811,8.472e-05,2]
[407726863,1772701839354,-1340.41721084,8.472e-05,2]
[407726864,1772701839363,-2094.40189194,8.472e-05,2]
[407726865,1772701839372,-3015.93872439,8.472e-05,2]
[407726866,1772701839381,-4105.0277082,8.472e-05,2]
[407726867,1772701839391,-375.65791056,8.472e-05,2]
[407726868,1772701839400,-676.184239,8.472e-05,2]
[407726869,1772701839410,-1202.10531378,8.472e-05,2]
[407726870,1772701839419,-1878.28955279,8.472e-05,2]
[407726871,1772701839429,-5361.66884336,8.472e-05,2]
[407726872,1772701839438,-328.23037305,8.472e-05,2]
[407726873,1772701839447,-2704.73695601,8.472e-05,2]
[407726874,1772701839456,-6779.07626775,8.472e-05,2]
[407726875,1772701839466,-3677.76607594,8.472e-05,2]
[407726876,1772701839475,-500.0,8.489e-05,30]
[407726877,1772701839484,-500.0,8.489e-05,30]
[407726878,1772701839494,-150.0,8.489e-05,30]
[407726879,1772701839507,-500.0,8.489e-05,30]
[407726880,1772701839516,-150.0,8.489e-05,30]
[407726881,1772701839525,-150.0,8.489e-05,30]
[407726882,1772701839534,-150.0,8.489e-05,30]
[407726883,1772701839545,-218.2935691,8.489e-05,30]
[407726884,1772701839554,-500.0,8.489e-05,30]